[Event "Polish University-ch Teams 2024"]
[Site "Lublin"]
[Date "2024.02.24"]
[Round "1.1"]
[White "Kowalski, Igor"]
[Black "Smieszek, Wojciech"]
[Result "1-0"]
[ECO "A67"]
[WhiteElo "2372"]
[BlackElo "2130"]
[Annotator "TA"]
[PlyCount "83"]
[EventDate "2024.02.22"]
[EventType "team-tourn"]
[EventCountry "POL"]
[SourceTitle "playchess.com"]
[Source "ChessBase"]
[SourceQuality "1"]
[TimeControl "900+5"]

{[%evp 23,83,61,68,37,47,20,0,0,22,18,27,22,28,27,33,20,23,25,14,19,17,24,22,0,0,0,0,4,29,0,381,25,40,40,33,30,35,30,52,52,53,43,45,41,52,55,64,45,52,60,143,135,118,28,32,31,39,0,0,0,118,0]} 1. d4 {[%emt 0:00:01]} Nf6 {[%emt 0:00:01]} 2. c4 {[%emt 0:00:02]} c5 {[%emt 0:00:01]} 3. d5 {[%emt 0:00:01]} e6 {[%emt 0:00:01]} 4. Nc3 {[%emt 0:00:02]} exd5 {[%emt 0:00:02]} 5. cxd5 {[%emt 0:00:01]} d6 {[%emt 0:00:01]} 6. e4 {[%emt 0:00:02]} g6 {[%emt 0:00:01]} 7. f4 {[%emt 0:00:14]} Bg7 {[%emt 0:00:03]} 8. Bb5+ {[%emt 0:00:01]} Nfd7 {[%emt 0:00:01]} 9. a4 {[%emt 0:00:01]} O-O {[%emt 0:00:03]} 10. Nf3 {[%emt 0:00:02]} a6 {[%emt 0:00:34]} 11. Bd3 {[%emt 0:00:11]} Nf6 {[%emt 0:00:31]} 12. O-O {[%emt 0:00:09]} Bg4 {[%emt 0:00:02]} 13. Re1 {[%emt 0:00:33]} Re8 {[%emt 0:00:25]} 14. Kh1 {[%emt 0:01:38]} Nbd7 {[%emt 0:00:15]} 15. h3 {[%emt 0:00:09] The position is equal.} Bxf3 {[%emt 0:00:26]} (15... c4 $5 16. Bxc4 Rc8 $14) 16. Qxf3 {[%emt 0:00:01]} Rc8 {[%emt 0:03:11]} 17. Be3 {[%emt 0:01:09]} c4 {[%emt 0:00:47]} 18. Bc2 {[%emt 0:00:02]} Nc5 {[%emt 0:00:30]} 19. Bxc5 {[%emt 0:03:04]} Rxc5 {[%emt 0:01:04]} 20. e5 {[%emt 0:00:01]} dxe5 {[%emt 0:01:49]} 21. fxe5 {[%emt 0:00:01]} Nd7 {[%emt 0:00:04]} (21... Nxd5 $2 22. Rad1 $18) 22. e6 {[%emt 0:00:05]} fxe6 {[%emt 0:01:00]} 23. dxe6 {[%emt 0:00:14]} (23. Rxe6 {simplifies} Rc8 24. Rd1 Rf8 25. Qg3) 23... Ne5 {[%emt 0:00:02] Repels Qf7+} 24. Qxb7 {[%emt 0:00:08]} Rxe6 {[%emt 0:00:46]} 25. Rad1 {[%emt 0:00:26]} Qe8 {[%emt 0:00:37]} (25... Qc8 {simplifies} 26. Qxc8+ Rxc8 27. b3 Kh8) 26. Be4 {[%emt 0:01:49] [#] Strongly threatening Bd5.} Nc6 $2 {[%emt 0:01:34][%mdl 8192]} (26... Nf7 $1 $11 {and Black has nothing to worry.} 27. Rd7 Bxc3 28. bxc3 Rf5) 27. Rf1 $2 {[%emt 0:01:43]} ({Worse is} 27. Qxa6 Bxc3 28. bxc3 Rce5 (28... Rxe4 $2 {loses.} 29. Rxe4 Qxe4 30. Qc8+ Kf7 31. Rd7+ Ne7 32. Qxc5 $18) 29. Qxc4 (29. Bd5 $2 Rxd5 30. Rf1 Na5 $19) 29... Kg7 30. Bxc6 Rxe1+ 31. Rxe1 Rxe1+ 32. Kh2 Qe5+ 33. g3 Qe2+ 34. Qxe2 Rxe2+ 35. Kg1 Rc2 $17) (27. Bd5 $2 Rxd5 28. Rxe6 Rxd1+ 29. Nxd1 Qxe6 $19) ({Better is} 27. Rd5 $18 Bxc3 28. bxc3) 27... Bxc3 $1 $11 {[%emt 0:00:57]} 28. Bxc6 {[%emt 0:00:02]} Rcxc6 {[%emt 0:01:03]} 29. bxc3 {[%emt 0:00:02]} Re7 {[%emt 0:00:07] Prevents Rd7} 30. Qb4 {[%emt 0:00:20]} Rf7 {[%emt 0:00:11]} 31. Rxf7 {[%emt 0:00:42]} Kxf7 $14 {[%emt 0:00:44][%mdl 4096] Endgame. KQR-KQR} 32. Rf1+ {[%emt 0:01:20]} Kg8 {[%emt 0:00:02][%cal Bf7g8,Bg8g7,Bg7h6][%mdl 32]} 33. Qb7 {[%emt 0:00:08]} Rd6 {[%emt 0:00:32]} 34. Qc7 {[%emt 0:00:03][%csl LRc4,LRd6]} Rc6 {[%emt 0:00:06]} 35. Qa5 {[%emt 0:00:37] White is much more active.} Kg7 {[%emt 0:00:08]} 36. Qd5 {[%emt 0:00:03]} Qe6 {[%emt 0:00:12]} ({Black should play} 36... h5 $14) 37. Qd4+ $16 {[%emt 0:00:01]} Kh6 {[%emt 0:00:07]} 38. Qf4+ {[%emt 0:00:06]} ({White should try} 38. Qh4+ $16 Kg7 39. Qd4+ Kh6 40. Rf4) 38... g5 $11 {[%emt 0:00:03]} 39. Qf8+ {[%emt 0:00:20]} Kg6 {[%emt 0:00:02]} 40. a5 {[%emt 0:01:22]} Rd6 {[%emt 0:00:01]} 41. Rb1 {[%emt 0:00:01]} Qf6 {[%emt 0:00:17] [#]} (41... h5 $11) 42. Qxd6 {[%emt 0:00:05][%mdl 32768] Weighted Error Value: White=0.34/Black=0.29 (precise) .  Loses game:     	---       	Black=1      Missed win:     	White=1     	---        Mistake:       	White=2     	Black=2      Inaccurate:     	White=3     	---        OK:         	White=13    	Black=11     Best:        	White=1     	Black=2      Strong:       	---       	Black=1     . Loss on time!?} 1-0

[Event "Polish University-ch Teams 2024"]
[Site "Lublin"]
[Date "2024.02.24"]
[Round "1.2"]
[White "Strzalkowski, Damian"]
[Black "Molenda, Marcin"]
[Result "1/2-1/2"]
[ECO "A46"]
[WhiteElo "1672"]
[BlackElo "2377"]
[Annotator "TA"]
[PlyCount "92"]
[EventDate "2024.02.22"]
[EventType "team-tourn"]
[EventCountry "POL"]
[SourceTitle "playchess.com"]
[Source "ChessBase"]
[SourceQuality "1"]
[TimeControl "900+5"]

{[%evp 11,92,9,9,0,-4,0,7,0,9,5,12,-10,3,0,-3,-25,0,-9,-2,-20,-16,-22,-12,-40,-37,-41,-52,-79,-66,-71,-30,-45,-22,-19,0,-58,-29,-81,-80,-56,0,-65,-12,-7,319,-6,-6,-6,-6,-6,-6,-7,0,-3,0,0,0,0,0,0,0,0,0,-9,-9,-9,-9,-9,-9,-9,-9,-9,-9,-9,0,0,0,0,0,0,0,0,0]} 1. d4 {[%emt 0:00:02]} Nf6 {[%emt 0:00:02]} 2. Bg5 {[%emt 0:00:02]} e6 {[%emt 0:00:07]} 3. e4 {[%emt 0:00:02]} h6 {[%emt 0:00:02]} 4. Bxf6 {[%emt 0:00:01]} Qxf6 {[%emt 0:00:02]} 5. Nf3 {[%emt 0:00:02]} d6 {[%emt 0:00:16]} 6. Bd3 {[%emt 0:00:08]} g6 {[%emt 0:00:03]} 7. O-O {[%emt 0:00:11]} Bg7 {[%emt 0:00:02]} 8. c3 {[%emt 0:00:02]} O-O {[%emt 0:00:11]} 9. Nbd2 {[%emt 0:00:21]} Nd7 {[%emt 0:00:03]} 10. Re1 {[%emt 0:00:11]} e5 {[%emt 0:02:11]} 11. dxe5 {[%emt 0:00:10]} Nxe5 {[%emt 0:00:25]} 12. Nxe5 {[%emt 0:00:12]} Qxe5 {[%emt 0:00:02]} 13. Nf3 {[%emt 0:00:44]} Qe7 {[%emt 0:00:54]} 14. Qb3 {[%emt 0:00:10]} c6 {[%emt 0:00:39]} 15. h3 {[%emt 0:00:35]} Rb8 {[%emt 0:02:24]} 16. Rad1 {[%emt 0:00:14]} b5 {[%emt 0:00:36]} 17. a4 {[%emt 0:03:47]} Be6 {[%emt 0:00:16]} 18. Qa3 {[%emt 0:00:43]} bxa4 {[%emt 0:00:33]} 19. Nd4 {[%emt 0:00:21] Gegen Rb3 gerichtet.} Bxd4 {[%emt 0:02:32]} 20. cxd4 {[%emt 0:00:03]} Bb3 {[%emt 0:00:15] Pariert Bc2.} 21. Rc1 {[%emt 0:00:09]} Rb6 {[%emt 0:00:55]} 22. e5 {[%emt 0:00:15] Pariert Qf6.} Rd8 {[%emt 0:00:22]} 23. Be4 {[%emt 0:01:37]} (23. Bc4 $11) 23... Qd7 {[%emt 0:00:09]} (23... Qg5 {mit weiteren Verwicklungen.} 24. exd6 Qd2 25. d7 Rxd7 26. Bxc6 Rd8) 24. Bf3 {[%emt 0:00:46]} (24. Bc2 $1 $11 {hält das Gleichgewicht.}) 24... dxe5 {[%emt 0:01:11]} 25. dxe5 {[%emt 0:00:08]} Bd5 {[%emt 0:00:58]} (25... Qd4 $15) 26. Red1 {[%emt 0:01:28]} (26. Qxa4 $11 Bxf3 (26... Rxb2 27. Bxd5 cxd5 28. Qh4 $17) 27. e6 fxe6 28. gxf3) 26... Qe6 {[%emt 0:00:14]} (26... Qe8 $15) 27. Qxa4 $11 {[%emt 0:01:19]} Rxb2 $2 {[%emt 0:01:12][%mdl 8192] [#]} (27... Qxe5 $11 {und Schwarz ist OK.} 28. Qxa7 Qxb2 (28... Rxb2 29. Rxc6 Bxc6 30. Rxd8+ Kg7 31. Qd4 $11)) 28. Qxa7 $2 {[%emt 0:00:30]} (28. Rxc6 $18 Bxc6 29. Rxd8+ Kh7 30. Bxc6 (30. Qxc6 Rb1+ 31. Kh2 Qxe5+ 32. g3 Rb2 $16) 30... Qxe5 31. Qe4 (31. Qxa7 $2 {wird mattgesetzt.} Rb1+)) 28... Qxe5 {[%emt 0:00:30] Die Stellung ist ausgeglichen.} 29. Rxc6 {[%emt 0:00:13]} Bxc6 {[%emt 0:00:07]} 30. Rxd8+ {[%emt 0:00:15]} Kg7 {[%emt 0:00:00] [#] Droht stark ...Bxf3.} (30... Be8 {vereinfacht} 31. Qa1 Rb5 32. Qxe5 Rxe5 33. Bc6 Kf8) 31. Qe3 {[%emt 0:01:00] Das Brett brennt.} Qxe3 {[%emt 0:00:16]} (31... Rb1+ {hält die Spannung aufrecht.} 32. Rd1 Rxd1+ 33. Bxd1 Qxe3 34. fxe3 Kf6) 32. fxe3 {[%emt 0:00:01]} Bxf3 {[%emt 0:00:02]} 33. gxf3 {[%emt 0:00:01][%cal Bg2f3,Bf3g4,Bg4g5][%mdl 4128] Endspiel. KR-KR} Re2 {[%emt 0:00:03]} 34. e4 {[%emt 0:00:25]} Kf6 {[%emt 0:00:01]} 35. Rd5 {[%emt 0:00:01]} g5 {[%emt 0:00:07]} 36. h4 {[%emt 0:00:20]} g4 {[%emt 0:00:16]} 37. fxg4 {[%emt 0:00:01]} Rxe4 {[%emt 0:00:01]} 38. g5+ {[%emt 0:00:08]} Ke6 {[%emt 0:00:07]} 39. Ra5 {[%emt 0:00:03]} h5 {[%emt 0:00:02]} 40. Ra6+ {[%emt 0:00:14]} Ke7 {[%emt 0:00:03]} 41. Kf2 {[%emt 0:00:17]} Rxh4 {[%emt 0:00:09]} 42. g6 {[%emt 0:00:01]} fxg6 {[%emt 0:00:06]} 43. Rxg6 {[%emt 0:00:01]} Kf7 {[%emt 0:00:02]} 44. Rg3 {[%emt 0:00:05]} Kf6 {[%emt 0:00:01]} 45. Kg2 {[%emt 0:00:04]} Kf5 {[%emt 0:00:02]} 46. Ra3 {[%emt 0:00:03]} Ke5 {[%emt 0:00:24] Gewichteter Fehlerwert: Weiß=0.28 (präzise) /Schwarz=0.20 (präzise) .  Verlustzug:     	---       	Schwarz=1     Gewinn verpasst:   	Weiß=1     	---        Fehler:       	Weiß=3     	Schwarz=2     Ungenau:       	Weiß=2     	Schwarz=2     OK:         	Weiß=18    	Schwarz=13    Bester:       	Weiß=1     	Schwarz=1} 1/2-1/2

[Event "Polish University-ch Teams 2024"]
[Site "Lublin"]
[Date "2024.02.24"]
[Round "1.4"]
[White "Raczynski, Wiktor"]
[Black "Hrymowicz, Artur"]
[Result "0-1"]
[ECO "E12"]
[WhiteElo "1195"]
[BlackElo "2131"]
[Annotator "NA RC"]
[PlyCount "72"]
[EventDate "2024.02.22"]
[EventType "team-tourn"]
[EventCountry "POL"]
[SourceTitle "playchess.com"]
[Source "ChessBase"]
[SourceQuality "1"]
[TimeControl "900+5"]

1. d4 {[%emt 0:00:02]} Nf6 {[%emt 0:00:04]} 2. c4 {[%emt 0:00:01]} b6 {[%emt 0:00:01]} 3. Nc3 {[%emt 0:00:03]} Bb7 {[%emt 0:00:02]} 4. Nf3 {[%emt 0:00:04]} e6 {[%emt 0:00:06]} 5. Bg5 {[%emt 0:00:03]} Bb4 {[%emt 0:00:07]} 6. e3 {[%emt 0:00:05]} Bxc3+ {[%emt 0:00:02]} 7. bxc3 {[%emt 0:00:04]} d6 {[%emt 0:00:05]} 8. Qc2 {[%emt 0:00:19]} Nbd7 {[%emt 0:01:10]} 9. Be2 {[%emt 0:00:13]} h6 {[%emt 0:00:12]} 10. Bh4 {[%emt 0:00:06]} Qe7 {[%emt 0:00:09]} 11. O-O {[%emt 0:00:53]} g5 {[%emt 0:00:09]} 12. Bg3 {[%emt 0:00:05]} O-O-O {[%emt 0:00:08]} 13. a4 {[%emt 0:00:48]} a5 {[%emt 0:00:01]} 14. Rab1 {[%emt 0:00:15]} Ne4 {[%emt 0:00:58]} 15. Nd2 {[%emt 0:00:48]} Nxd2 {[%emt 0:04:36]} 16. Qxd2 {[%emt 0:00:02]} h5 {[%emt 0:00:08]} 17. f4 {[%emt 0:04:17]} h4 {[%emt 0:00:52]} 18. Be1 {[%emt 0:00:15]} gxf4 {[%emt 0:01:25]} 19. Rxf4 {[%emt 0:01:13]} Rdg8 {[%emt 0:01:11]} 20. Rf2 {[%emt 0:00:32]} Nf6 {[%emt 0:00:58]} 21. Bf3 {[%emt 0:03:15]} Ne4 {[%emt 0:00:15]} 22. Bxe4 {[%emt 0:00:15]} Bxe4 {[%emt 0:00:01]} 23. Rb2 {[%emt 0:03:22]} f5 {[%emt 0:00:08]} 24. Kf1 {[%emt 0:00:00]} Qd7 {[%emt 0:00:21]} 25. Ra2 {[%emt 0:00:00]} Qc6 {[%emt 0:00:05]} 26. Qe2 {[%emt 0:00:00]} Kb7 {[%emt 0:00:33]} 27. Bd2 {[%emt 0:00:09]} Rg7 {[%emt 0:00:27]} 28. Bc1 {[%emt 0:00:03]} Rhg8 {[%emt 0:00:04]} 29. Kg1 {[%emt 0:00:09]} Rxg2+ {[%emt 0:00:27]} 30. Rxg2 {[%emt 0:00:02]} Rxg2+ {[%emt 0:00:01]} 31. Qxg2 {[%emt 0:00:08]} Bxg2 {[%emt 0:00:01]} 32. Rxg2 {[%emt 0:00:01]} Qf3 {[%emt 0:00:11]} 33. Bd2 {[%emt 0:00:06]} h3 {[%emt 0:00:04]} 34. Rf2 {[%emt 0:00:08]} Qd1+ {[%emt 0:00:03]} 35. Rf1 {[%emt 0:00:03]} Qxd2 {[%emt 0:00:01]} 36. Rf3 {[%emt 0:00:08]} Qg2# {[%emt 0:00:03]} 0-1

[Event "Polish University-ch Teams 2024"]
[Site "Lublin"]
[Date "2024.02.24"]
[Round "1.7"]
[White "Walter, Szymon"]
[Black "Szustakowski, Antoni"]
[Result "1/2-1/2"]
[ECO "D32"]
[WhiteElo "2305"]
[BlackElo "2354"]
[Annotator "TA"]
[PlyCount "77"]
[EventDate "2024.02.22"]
[EventType "team-tourn"]
[EventCountry "POL"]
[SourceTitle "playchess.com"]
[Source "ChessBase"]
[SourceQuality "1"]
[TimeControl "900+5"]

{[%evp 18,77,-17,0,0,-14,0,-43,-32,-27,-27,-40,-37,-46,-40,-67,-63,-52,-51,-62,-43,-55,-51,-62,18,22,23,20,23,22,23,0,52,17,19,16,25,11,17,26,15,14,27,0,6,0,8,0,0,0,0,0,0,0,10,0,0,0,0,-193,-162,-2574]} 1. Nf3 {[%emt 0:00:17]} d5 {[%emt 0:00:02]} 2. c4 {[%emt 0:00:04]} e6 {[%emt 0:00:02]} 3. e3 {[%emt 0:00:08]} Nf6 {[%emt 0:15:16]} 4. Nc3 {[%emt 0:00:04]} Be7 {[%emt 0:00:00]} 5. Qc2 {[%emt 0:00:04]} c5 {[%emt 0:00:00]} 6. cxd5 {[%emt 0:00:27]} exd5 {[%emt 0:00:00]} 7. Bb5+ {[%emt 0:00:06]} Nc6 {[%emt 0:00:00]} 8. d4 {[%emt 0:01:47]} O-O {[%emt 0:00:00]} 9. dxc5 {[%emt 0:01:06]} Bxc5 {[%emt 0:00:00]} 10. O-O {[%emt 0:00:23]} Bd6 {[%emt 0:00:00]} 11. h3 {[%emt 0:00:44]} a6 {[%emt 0:00:00]} 12. Be2 {[%emt 0:00:28]} Be6 {[%emt 0:00:00] Schwarz steht etwas besser.} 13. Rd1 {[%emt 0:01:41]} Rc8 {[%emt 0:00:00]} 14. Ng5 {[%emt 0:01:09]} h6 {[%emt 0:00:00]} 15. Nxe6 {[%emt 0:01:08]} fxe6 {[%emt 0:00:00]} 16. Bd3 {[%emt 0:00:06]} Nb4 {[%emt 0:00:00]} 17. Qe2 {[%emt 0:00:10]} Nxd3 {[%emt 0:00:00]} 18. Rxd3 {[%emt 0:01:49]} Be5 {[%emt 0:00:00]} 19. Bd2 {[%emt 0:00:34][%cal Bc1d2,Bd2e1,Be1c3][%mdl 32]} Qb6 {[%emt 0:00:00]} 20. Be1 {[%emt 0:01:03]} Bxc3 {[%emt 0:00:00]} (20... Rc4 $15) 21. Bxc3 $11 {[%emt 0:00:15]} Ne4 {[%emt 0:00:00]} 22. Be1 {[%emt 0:00:49]} Rc4 {[%emt 0:00:00]} 23. f3 {[%emt 0:00:29][%cal Ob2b3]} Nd6 {[%emt 0:00:00]} 24. Bf2 {[%emt 0:01:32]} Qc6 {[%emt 0:00:00]} (24... Rfc8 $11 25. e4 d4) 25. Rad1 {[%emt 0:00:02][%cal Oe3e4]} Rc2 {[%emt 0:00:00]} 26. R1d2 {[%emt 0:00:06]} Rxd2 {[%emt 0:00:00]} 27. Qxd2 {[%emt 0:00:15][%cal Oe3e4]} Rc8 {[%emt 0:00:07]} 28. Rc3 {[%emt 0:00:05]} Qd7 {[%emt 0:00:26]} 29. Rxc8+ {[%emt 0:00:03]} Qxc8 {[%emt 0:00:04][%mdl 4096] Endspiel. KQB-KQN} 30. Qb4 {[%emt 0:00:02]} Qc6 {[%emt 0:00:11]} 31. Qf4 {[%emt 0:00:19]} Nc4 {[%emt 0:00:35]} 32. b3 {[%emt 0:00:04]} Nd2 {[%emt 0:00:23]} 33. h4 {[%emt 0:00:21]} Qc1+ {[%emt 0:00:10]} 34. Kh2 {[%emt 0:00:01]} Qf1 $36 {[%emt 0:00:02][%mdl 2048] Schwarz hat gut koordiniertes Spiel.} 35. Qg4 {[%emt 0:00:13]} Kf7 {[%emt 0:00:42]} 36. Qf4+ {[%emt 0:00:04]} Kg8 {[%emt 0:00:00]} 37. Bg3 {[%emt 0:00:02] Zielt auf Qe5 ab.} Qe2 {[%emt 0:00:00] Und ...Nf1+ würde nun gewinnen.} 38. Qg4 $2 {[%emt 0:00:02] [#]} (38. Kh3 $11 Nf1 39. Qb8+ Kh7 40. Bf4) 38... Nf1+ $1 $19 {[%emt 0:00:00]} ({Jedoch nicht} 38... Qxe3 39. Kh3 Nf1 40. Bf2 $17 (40. Bf4 $2 h5 $19)) 39. Kh3 $2 {[%emt 0:00:07][%mdl 32768] Gewichteter Fehlerwert: Weiß=0.19 (sehr präzise) /Schwarz=0.10 (sehr präzise) .  Verlustzug:     	Weiß=1     	---        Fehler:       	Weiß=1     	Schwarz=2     Ungenau:       	Weiß=4     	---        OK:         	Weiß=7     	Schwarz=9     Bester:       	Weiß=1     	---        Stark:        	---       	Schwarz=1    . Ein unerwartetes Ergebnis.} (39. Kg1 Nxe3 (39... Nxg3 40. Qxg3 Qxe3+ 41. Kf1 $19) 40. Qxe6+ Kh7 41. Qh3) 1/2-1/2

[Event "Polish University-ch Teams 2024"]
[Site "Lublin"]
[Date "2024.02.24"]
[Round "1.8"]
[White "Koziorowicz, Michal"]
[Black "Cieslak, Wiktoria"]
[Result "1-0"]
[ECO "B52"]
[WhiteElo "2324"]
[BlackElo "1868"]
[Annotator "TA"]
[PlyCount "87"]
[EventDate "2024.02.22"]
[EventType "team-tourn"]
[EventCountry "POL"]
[SourceTitle "playchess.com"]
[Source "ChessBase"]
[SourceQuality "1"]
[TimeControl "900+5"]

{[%evp 20,87,23,15,39,32,158,95,94,84,93,80,98,66,66,62,58,62,57,62,63,22,23,0,48,40,43,20,50,0,99,89,89,78,123,66,218,228,218,227,202,206,477,121,118,123,123,118,117,92,131,126,119,119,129,121,125,115,208,108,208,165,408,388,945,945,931,880,29969,29968]} 1. e4 {[%emt 0:00:02]} c5 {[%emt 0:00:01]} 2. Nf3 {[%emt 0:00:02]} d6 {[%emt 0:00:02]} 3. Bb5+ {[%emt 0:00:01]} Bd7 {[%emt 0:00:02]} 4. Bxd7+ {[%emt 0:00:03]} Qxd7 {[%emt 0:00:02]} 5. O-O {[%emt 0:00:02]} Nf6 {[%emt 0:00:04]} 6. Re1 {[%emt 0:00:01]} e6 {[%emt 0:00:02]} 7. c3 {[%emt 0:00:02][%cal Bc2c3,Bc3d4,Bd4d5][%mdl 32]} Be7 {[%emt 0:00:06]} 8. d4 {[%emt 0:00:02]} cxd4 {[%emt 0:00:04]} 9. cxd4 {[%emt 0:00:01]} Nc6 {[%emt 0:00:30]} 10. Nc3 {[%emt 0:00:03]} O-O {[%emt 0:00:18]} 11. Bf4 {[%emt 0:00:04]} a6 {[%emt 0:00:32]} 12. d5 {[%emt 0:00:22]} Nd8 {[%emt 0:00:12]} (12... exd5 $14 13. exd5 (13. Nxd5 Nxd5 14. exd5 Na7 $14) 13... Na5) 13. h3 {[%emt 0:00:10] Weiß hat aktiveres Spiel. Die schwarzen Türme stehen passiv.} (13. Na4 $142 {Nb6 wäre nun fies.} Rb8 14. Nb6) 13... e5 $16 {[%emt 0:00:10] Weiß steht besser.} 14. Be3 {[%emt 0:00:04]} b5 {[%emt 0:00:11] Lässt Na4 nicht zu} 15. Nd2 {[%emt 0:00:10]} Rc8 {[%emt 0:00:19]} 16. Qb3 {[%emt 0:00:22]} Nb7 {[%emt 0:00:24]} 17. a4 {[%emt 0:00:02][%cal Ra4b5]} Nc5 {[%emt 0:00:14]} 18. Bxc5 {[%emt 0:01:16]} Rxc5 {[%emt 0:00:03]} 19. axb5 {[%emt 0:00:23]} axb5 {[%emt 0:00:11]} 20. Ra5 {[%emt 0:01:05][%cal Oe1a1]} Rb8 {[%emt 0:00:33]} 21. Rea1 {[%emt 0:00:04]} h6 {[%emt 0:00:40]} (21... Bd8 $11 22. Ra8 Qc8 23. Rxb8 Qxb8) 22. Na2 {[%emt 0:01:37]} Bd8 {[%emt 0:01:57]} 23. Ra6 {[%emt 0:00:15]} b4 {[%emt 0:00:25]} 24. Nc1 {[%emt 0:00:09]} (24. Ra4 $14) 24... Qc7 {[%emt 0:00:38]} (24... Qc8 $1 $11 {hält das Gleichgewicht.} 25. Qd1 Bb6) 25. Nd3 {[%emt 0:00:07][%csl LRb4,LRc5]} Rc2 {[%emt 0:00:01]} 26. Rd1 {[%emt 0:00:53][%cal Oa6a1,Ba1d1,Bd1d2,Bd2c2,Bc2c8][%mdl 32]} (26. Nxb4 Rxd2 27. Qe3 Rxb2 $19) 26... Be7 {[%emt 0:00:56] [#]} 27. Qa4 {[%emt 0:01:22]} (27. Nxb4 Rxd2 28. Rxd2 Nxe4 $15) (27. Ra4 $1 $16) 27... Rxd2 $2 {[%emt 0:02:04]} 28. Rxd2 $18 {[%emt 0:00:03]} Nxe4 {[%emt 0:00:02]} 29. Rc2 {[%emt 0:00:05]} Qb7 {[%emt 0:00:18]} 30. Qc6 {[%emt 0:01:02] Droht stark Rc4.} b3 $2 {[%emt 0:00:26]} (30... Nf6 31. Qxb7 Rxb7 32. Rc8+ Kh7 33. Nxe5 dxe5) 31. Qxb7 $2 {[%emt 0:00:49]} (31. Rc4 $18 Nc5 32. Nxc5 (32. Rb4 Qxa6 33. Rxb8+ Kh7 $18) 32... dxc5 33. d6) 31... Rxb7 $16 {[%emt 0:00:01]} 32. Rc8+ {[%emt 0:00:36]} Kh7 {[%emt 0:00:01]} 33. Kf1 {[%emt 0:01:29]} Rb5 {[%emt 0:00:42]} 34. Ra4 {[%emt 0:01:38]} Rxd5 {[%emt 0:00:17]} 35. Rxe4 {[%emt 0:00:13]} Rxd3 {[%emt 0:00:02][%mdl 4096] Endspiel. KRR-KRB} 36. Ke2 {[%emt 0:00:02] Gegen Rd2+ gerichtet.} Rd5 {[%emt 0:00:12]} 37. Rb4 {[%emt 0:00:02]} f5 {[%emt 0:00:20]} 38. Rxb3 {[%emt 0:00:09]} Ra5 {[%emt 0:00:22]} (38... e4 $16 {kämpft weiter.} 39. Rc1 Ra5) 39. g3 {[%emt 0:00:55]} ({Besser ist} 39. Rb7 $18 Bf6 40. Rc6) 39... d5 {[%emt 0:00:11]} (39... Kg6 $16 {ist wohl besser.} 40. Rcb8 Rd5) 40. h4 {[%emt 0:00:04][%cal Bh3h4,Bh4h5][%mdl 32] [#] Und jetzt Rb7 wäre schön.} d4 $2 {[%emt 0:00:11]} (40... Kg6 {war einen Versuch wert.} 41. Rcb8 Rc5) 41. h5 {[%emt 0:00:05] Zielt auf Rbb8 ab.} e4 $2 {[%emt 0:00:15]} (41... Ra7 42. Rbb8 g5) 42. Rbb8 $18 {[%emt 0:00:37][%csl Gb8][%cal Rc8h8]} g5 {[%emt 0:00:15]} 43. Rb7 {[%emt 0:00:25]} Re5 {[%emt 0:00:13]} 44. Re8 {[%emt 0:00:16] Gewichteter Fehlerwert: Weiß=0.38/Schwarz=0.82.  Gewinn verpasst:   	Weiß=1     	---        Fehler:       	Weiß=4     	Schwarz=9     Ungenau:       	Weiß=2     	Schwarz=3     OK:         	Weiß=13    	Schwarz=10    Bester:       	Weiß=2     	Schwarz=2} 1-0

[Event "Polish University-ch Teams 2024"]
[Site "Lublin"]
[Date "2024.02.24"]
[Round "1.9"]
[White "Smagacz, Aleksander"]
[Black "Syrkiewicz, Michal"]
[Result "0-1"]
[ECO "B43"]
[WhiteElo "1530"]
[BlackElo "2074"]
[Annotator "NA RC"]
[PlyCount "72"]
[EventDate "2024.02.22"]
[EventType "team-tourn"]
[EventCountry "POL"]
[SourceTitle "playchess.com"]
[Source "ChessBase"]
[SourceQuality "1"]
[TimeControl "900+5"]

1. e4 {[%emt 0:00:02]} c5 {[%emt 0:00:09]} 2. Nf3 {[%emt 0:00:02]} e6 {[%emt 0:00:02]} 3. d4 {[%emt 0:00:04]} cxd4 {[%emt 0:00:02]} 4. Nxd4 {[%emt 0:00:01]} a6 {[%emt 0:00:01]} 5. Nc3 {[%emt 0:00:09]} b5 {[%emt 0:00:03]} 6. a3 {[%emt 0:00:26]} Bb7 {[%emt 0:00:03]} 7. Bd3 {[%emt 0:00:28]} d6 {[%emt 0:00:29]} 8. O-O {[%emt 0:00:07]} Nf6 {[%emt 0:00:04]} 9. Kh1 {[%emt 0:00:16]} Nbd7 {[%emt 0:00:08]} 10. f4 {[%emt 0:00:13]} Qc7 {[%emt 0:00:06]} 11. Qe2 {[%emt 0:01:24]} Be7 {[%emt 0:00:43]} 12. Bd2 {[%emt 0:01:10]} Rd8 {[%emt 0:02:15]} 13. Rae1 {[%emt 0:00:44]} Nc5 {[%emt 0:02:00]} 14. f5 {[%emt 0:02:57]} e5 {[%emt 0:00:41]} 15. Nf3 {[%emt 0:00:15]} O-O {[%emt 0:01:10]} 16. h3 {[%emt 0:01:30]} Rfe8 {[%emt 0:03:01]} 17. b4 {[%emt 0:02:30]} Nxd3 {[%emt 0:00:58]} 18. cxd3 {[%emt 0:00:06]} Bf8 {[%emt 0:00:27]} 19. Rc1 {[%emt 0:00:17]} Qb8 {[%emt 0:00:48]} 20. Bg5 {[%emt 0:01:13]} Be7 {[%emt 0:00:50]} 21. Bxf6 {[%emt 0:00:45]} Bxf6 {[%emt 0:00:01]} 22. Qa2 {[%emt 0:00:24]} d5 {[%emt 0:00:54]} 23. exd5 {[%emt 0:00:26]} Qa8 {[%emt 0:00:24]} 24. Ne4 {[%emt 0:00:35]} Bxd5 {[%emt 0:00:18]} 25. Nxf6+ {[%emt 0:00:05]} gxf6 {[%emt 0:00:02]} 26. Qd2 {[%emt 0:00:24]} Kg7 {[%emt 0:00:26]} 27. Qf2 {[%emt 0:00:19]} Rd6 {[%emt 0:00:41]} 28. Qg3+ {[%emt 0:00:08]} Kh8 {[%emt 0:00:02]} 29. Qh4 {[%emt 0:00:17]} e4 {[%emt 0:00:26]} 30. dxe4 {[%emt 0:00:08]} Rxe4 {[%emt 0:00:02]} 31. Qh6 {[%emt 0:00:06]} Re2 {[%emt 0:00:12]} 32. Qf4 {[%emt 0:00:07]} Rd8 {[%emt 0:00:10]} 33. Rc7 {[%emt 0:00:05]} Rg8 {[%emt 0:00:03]} 34. Qd4 {[%emt 0:00:05]} Qd8 {[%emt 0:00:03]} 35. Rf2 {[%emt 0:00:06]} Rxf2 {[%emt 0:00:06]} 36. Qxf2 {[%emt 0:00:00]} Qxc7 {[%emt 0:00:01]} 0-1